[Event "GER-ch Youth-U14 2022"]
[Site "Willingen"]
[Date "2022.06.08"]
[Round "6.17"]
[White "Linnemann, Caspar"]
[Black "Mueller, Maximilian"]
[Result "0-1"]
[ECO "C06"]
[WhiteElo "1720"]
[BlackElo "2299"]
[Annotator "TA"]
[PlyCount "122"]
[EventDate "2022.06.05"]
[EventType "swiss"]
[EventRounds "9"]
[EventCountry "GER"]
[SourceTitle "playchess.com"]
[Source "ChessBase"]
[SourceQuality "1"]
[TimeControl "40/4500+30:900+30"]

{[%evp 26,122,37,31,83,0,0,0,0,-168,-164,-153,-50,-42,-33,-137,-143,-407,-125,-388,-89,-419,-397,-386,-245,-231,0,-368,-422,-398,-368,-343,-247,-210,-215,-229,-219,-233,-215,-595,-591,-29948,-29946,-5481,-550,-550,-550,-539,-539,-550,-550,-550,-550,-550,-550,-550,-549,-550,-545,-533,-534,-533,-533,-607,-598,-586,-572,-775,-746,-958,-948,-945,-942,-949,-941,-900,-883,-1106,-947,-1093,-1075,-1026,-1010,-955,-906,-946,-906,-898,-855,-1472,-1400,-1324,-1298,-5385,-5214,-1317,-1152,-1831,-1097]} 1. e4 {[%emt 0:00:00]} e6 {[%emt 0:00:00]} 2. d4 {[%emt 0:00:00]} d5 {[%emt 0:00:00]} 3. Nd2 {[%emt 0:00:00]} Nf6 {[%emt 0:00:00]} 4. e5 {[%emt 0:00:00]} Nfd7 {[%emt 0:00:00]} 5. c3 {[%emt 0:00:00]} c5 {[%emt 0:00:00]} 6. Bd3 {[%emt 0:00:00]} Nc6 {[%emt 0:00:00]} 7. Ne2 {[%emt 0:00:00]} cxd4 {[%emt 0:00:00]} 8. cxd4 {[%emt 0:00:00]} f6 {[%emt 0:00:00]} 9. exf6 {[%emt 0:00:00]} Nxf6 {[%emt 0:00:00]} 10. Nf3 {[%emt 0:00:00]} Bd6 {[%emt 0:00:00]} 11. O-O {[%emt 0:00:00]} Qc7 {[%emt 0:00:00]} 12. g3 {[%emt 0:00:00]} O-O {[%emt 0:00:00]} 13. Bf4 {[%emt 0:00:00]} Bd7 {[%emt 0:00:00]} 14. Rc1 {[%emt 0:00:00]} Be8 {[%emt 0:29:42] C06: French Tarrasch: 3...Nf6 4 e5 Nfd7 5 Bd3 main lines.} (14... Nh5 $14) 15. Bxd6 {[%emt 0:15:07]} (15. Ng5 $16) 15... Qxd6 $11 {[%emt 0:00:13]} 16. Nf4 {[%emt 0:00:30]} Ne4 {[%emt 0:08:34] [#] The position is equal.} 17. Ng2 $146 {[%emt 0:12:24]} (17. Bxe4 $11 dxe4 18. Ng5) ({Predecessor:} 17. Bxe4 dxe4 18. Ng5 Rxf4 19. gxf4 Qxf4 20. Nxe6 Qh6 21. Qg4 Bg6 22. Rc3 Re8 23. Rg3 {0-1 (44) Gayson,P (2125)-Bryant,R (1967) England 2019}) 17... Bh5 $19 {[%emt 0:11:01]} 18. Be2 {[%emt 0:03:31]} Bxf3 {[%emt 0:00:57]} (18... Rf6 $1 $17 {White must now prevent ...Raf8.} 19. h3 Raf8) 19. Bxf3 $15 {[%emt 0:00:53]} Nxd4 {[%emt 0:00:09]} 20. Bxe4 {[%emt 0:04:54]} ({Better is} 20. Qxd4 $15 Rxf3 21. Rcd1) 20... dxe4 $17 {[%emt 0:00:55]} 21. Ne1 {[%emt 0:01:04][%mdl 8192]} (21. Ne3 $17) 21... e5 $2 {[%emt 0:02:07]} (21... Rad8 $19 22. Qh5 Rf5) 22. Qg4 $2 {[%emt 0:05:51][%mdl 8192]} (22. Rc3 $17) 22... Qd5 $2 {[%emt 0:15:16]} (22... e3 $1 $19 {[%cal Re3e2] and Black stays clearly on top.} 23. f4 Rf5) 23. b3 $2 {[%emt 0:08:32][%mdl 8192]} (23. Rc7 $17 {is a better chance.} Rf7 24. Rxf7 Kxf7 25. Ng2) 23... e3 $19 {[%emt 0:04:11]} 24. Rc7 {[%emt 0:01:45][%csl Gc7][%cal Rg4g7]} Ne6 {[%emt 0:01:55]} 25. Rc2 {[%emt 0:05:34] [#]} Nd4 $40 {[%emt 0:02:19][%mdl 128] Black mounts an attack.} (25... h5 $142 $1 {[%cal Rh5g4]} 26. Qe2 Nd4 27. Qxe3 Nxc2 28. Nxc2 Rad8 29. Qxa7 Qe4) 26. Rc7 {[%emt 0:00:17][%csl Gc7][%cal Rg4g7] [#]} g6 {[%emt 0:00:51] The board is on fire.} 27. f3 {[%emt 0:01:44]} Rf5 {[%emt 0:04:28]} ({But not} 27... Rf7 $2 28. Rxf7 Kxf7 29. Kg2 $19) 28. Qh4 {[%emt 0:03:22]} Rf7 {[%emt 0:03:25] Active counter play!} 29. Rxf7 {[%emt 0:05:50]} Qxf7 {[%emt 0:00:02]} ({Weaker is} 29... Kxf7 30. Qxh7+ Kf6 31. Qh4+ Ke6 32. Qg5 $11) 30. Qe4 {[%emt 0:00:34]} e2 {[%emt 0:00:03]} 31. Rf2 {[%emt 0:00:21]} Rc8 {[%emt 0:01:17]} 32. Qxe5 $2 {[%emt 0:02:31]} (32. Rg2) 32... Rc1 $1 {[%emt 0:00:18][%csl LRe1,LRf3]} 33. Qxd4 {[%emt 0:08:32]} Rxe1+ {[%emt 0:00:11] KQR-KQR} 34. Kg2 {[%emt 0:00:12] [#]} Rg1+ $3 {[%emt 0:00:06][%mdl 512]} 35. Kxg1 {[%emt 0:00:16]} e1=Q+ {[%emt 0:00:06]} 36. Kg2 {[%emt 0:00:14]} b6 {[%emt 0:01:49]} 37. Qd8+ {[%emt 0:00:44]} Qee8 {[%emt 0:00:12]} 38. Qd4 {[%emt 0:00:22]} Qfe7 {[%emt 0:00:31]} 39. Qd5+ {[%emt 0:00:34]} Qe6 {[%emt 0:00:07]} 40. Qd4 {[%emt 0:00:08]} Q8c8 {[%emt 0:00:14]} 41. Qh4 {[%emt 0:15:27] Against Qh3+} Kg7 {[%emt 0:17:16]} 42. Qd4+ {[%emt 0:00:33]} Qf6 {[%emt 0:00:08]} 43. Qe4 {[%emt 0:01:02]} Qcc6 {[%emt 0:00:18]} 44. Qb4 {[%emt 0:01:57]} a5 {[%emt 0:00:39]} 45. Qd2 {[%emt 0:00:51]} g5 {[%emt 0:00:41]} 46. g4 {[%emt 0:01:51]} Qcd6 {[%emt 0:00:27] Hoping for ...Qff4.} 47. Qc2 {[%emt 0:00:50]} Qff4 {[%emt 0:00:26]} 48. Kg1 {[%emt 0:00:16]} Qc5 {[%emt 0:02:50]} 49. Qb2+ {[%emt 0:00:59]} Qfd4 {[%emt 0:00:06]} 50. Qe2 {[%emt 0:00:22]} Qe3 {[%emt 0:00:00] ( -> ...Qxe2)} 51. Qb2+ {[%emt 0:00:00]} Qcc3 {[%emt 0:00:00]} 52. Qb1 {[%emt 0:00:00]} Qce1+ {[%emt 0:00:00]} 53. Qxe1 {[%emt 0:00:00]} Qxe1+ {[%emt 0:00:00] KQ-KR} 54. Kg2 {[%emt 0:00:00]} Qe3 {[%emt 0:00:00]} 55. Kf1 {[%emt 0:00:00]} b5 {[%emt 0:00:00] And now ...Qd3+ would win.} 56. Kg2 {[%emt 0:00:00]} Kf6 {[%emt 0:00:00] Threatens to win with ...Ke5.} 57. Kf1 {[%emt 0:00:00]} Qc1+ {[%emt 0:00:00]} 58. Kg2 {[%emt 0:00:00]} Qd1 {[%emt 0:00:00]} 59. Rb2 {[%emt 0:00:00]} Ke5 {[%emt 0:00:00] Strongly threatening ...Kf4.} 60. Rf2 {[%emt 0:00:00]} Kd4 {[%emt 0:00:00] aiming for ...Ke3.} 61. h3 {[%emt 0:00:00]} Ke5 {Weighted Error Value: White=0.93/Black=0.91} 0-1

[Event "GER-ch Youth-U14 2022"]
[Site "Willingen"]
[Date "2022.06.08"]
[Round "6.18"]
[White "Deschler, Arne"]
[Black "Goldinov, Daniel"]
[Result "1-0"]
[ECO "B13"]
[WhiteElo "1646"]
[BlackElo "1626"]
[Annotator "NA RC COMBH"]
[PlyCount "87"]
[EventDate "2022.06.05"]
[EventType "swiss"]
[EventRounds "9"]
[EventCountry "GER"]
[SourceTitle "playchess.com"]
[Source "ChessBase"]
[SourceQuality "1"]
[TimeControl "40/4500+30:900+30"]

1. e4 {[%emt 0:00:00]} c6 {[%emt 0:00:00]} 2. d4 {[%emt 0:00:00]} d5 {[%emt 0:00:00]} 3. exd5 {[%emt 0:00:00]} cxd5 {[%emt 0:00:00]} 4. Bd3 {[%emt 0:00:00]} Nf6 {[%emt 0:00:00]} 5. h3 {[%emt 0:00:00]} Nc6 {[%emt 0:00:00]} 6. c3 {[%emt 0:00:00]} e5 {[%emt 0:00:00]} 7. dxe5 {[%emt 0:00:00]} Nxe5 {[%emt 0:00:00]} 8. Qe2 {[%emt 0:00:00]} Qe7 {[%emt 0:00:00]} 9. Bc2 {[%emt 0:00:00]} b6 {[%emt 0:05:45]} 10. Bf4 {[%emt 0:00:00]} Ng6 {[%emt 0:03:53]} 11. Bh2 {[%emt 0:00:00]} Ba6 {[%emt 0:01:20]} 12. Qxe7+ {[%emt 0:00:21]} Bxe7 {[%emt 0:00:12]} 13. Ba4+ {[%emt 0:02:00]} b5 {[%emt 0:04:47]} 14. Bb3 {[%emt 0:00:26]} O-O {[%emt 0:00:31]} 15. Nf3 {[%emt 0:02:12]} Bc5 {[%emt 0:04:27]} 16. O-O {[%emt 0:01:32]} b4 {[%emt 0:02:55]} 17. Rd1 {[%emt 0:00:39]} Be2 {[%emt 0:02:17]} 18. Rd2 {[%emt 0:04:24]} Bxf3 {[%emt 0:04:12]} 19. gxf3 {[%emt 0:00:07]} Nh4 {[%emt 0:04:31]} 20. Bxd5 {[%emt 0:02:07]} Nxd5 {[%emt 0:10:50]} 21. Rxd5 {[%emt 0:00:16]} Nxf3+ {[%emt 0:00:31]} 22. Kg2 {[%emt 0:00:19]} Ne1+ {[%emt 0:01:06]} 23. Kf1 {[%emt 0:01:09]} Nc2 {[%emt 0:01:04]} 24. Rxc5 {[%emt 0:00:07]} bxc3 {[%emt 0:01:10]} 25. Rxc3 {[%emt 0:00:38]} Rfc8 {[%emt 0:02:07]} 26. Rxc2 {[%emt 0:01:27]} Rxc2 {[%emt 0:00:19]} 27. Be5 {[%emt 0:02:18]} Rc1+ {[%emt 0:01:06]} 28. Ke2 {[%emt 0:10:34]} Rd8 {[%emt 0:01:45]} 29. Bf4 {[%emt 0:03:45]} Rh1 {[%emt 0:12:04]} 30. Bd2 {[%emt 0:05:57]} Re8+ {[%emt 0:01:12]} 31. Kd3 {[%emt 0:06:00]} Rxh3+ {[%emt 0:02:15]} 32. Kc2 {[%emt 0:00:15]} Rh1 {[%emt 0:01:12]} 33. a4 {[%emt 0:01:53]} Re2 {[%emt 0:05:03]} 34. b4 {[%emt 0:10:00]} Rxf2 {[%emt 0:03:28]} 35. b5 {[%emt 0:00:24]} Rh5 {[%emt 0:02:06]} 36. Nc3 {[%emt 0:02:26]} Rc5 {[%emt 0:00:46]} 37. a5 {[%emt 0:01:22]} Rc8 {[%emt 0:02:14]} 38. b6 {[%emt 0:01:55]} a6 {[%emt 0:04:56]} 39. b7 {[%emt 0:06:46]} Rb8 {[%emt 0:00:06]} 40. Rb1 {[%emt 0:00:23]} Rf6 {[%emt 0:03:04]} 41. Be3 {[%emt 0:18:33]} Rd6 {[%emt 0:00:00]} 42. Bf4 {[%emt 0:00:00]} Rdd8 {[%emt 0:00:00]} 43. Bxb8 {[%emt 0:00:00]} Rxb8 {[%emt 0:00:00]} 44. Nd5 {[%emt 0:00:00]} 1-0

[Event "GER-ch Youth-U14 2022"]
[Site "Willingen"]
[Date "2022.06.08"]
[Round "6.20"]
[White "Vihan, Shourya"]
[Black "Shapiro, Danil"]
[Result "1/2-1/2"]
[ECO "D31"]
[WhiteElo "1385"]
[BlackElo "1468"]
[Annotator "NA RC COMBH"]
[PlyCount "78"]
[EventDate "2022.06.05"]
[EventType "swiss"]
[EventRounds "9"]
[EventCountry "GER"]
[SourceTitle "playchess.com"]
[Source "ChessBase"]
[SourceQuality "1"]
[TimeControl "40/4500+30:900+30"]

1. d4 {[%emt 0:00:00]} d5 {[%emt 0:00:00]} 2. c4 {[%emt 0:00:00]} e6 {[%emt 0:00:00]} 3. Nc3 {[%emt 0:00:00]} Be7 {[%emt 0:00:00]} 4. Nf3 {[%emt 0:00:00]} Nf6 {[%emt 0:00:00]} 5. cxd5 {[%emt 0:00:00]} exd5 {[%emt 0:00:00]} 6. Bf4 {[%emt 0:00:00]} O-O {[%emt 0:00:00]} 7. h3 {[%emt 0:00:00]} Bf5 {[%emt 0:00:00]} 8. Qb3 {[%emt 0:00:00]} Qc8 {[%emt 0:00:00]} 9. Nxd5 {[%emt 0:00:00]} Nxd5 {[%emt 0:00:00]} 10. Qxd5 {[%emt 0:00:00]} Be6 {[%emt 0:00:00]} 11. Qb5 {[%emt 0:06:13]} c6 {[%emt 0:03:23]} 12. Qd3 {[%emt 0:01:58]} Bf5 {[%emt 0:02:46]} 13. Qd2 {[%emt 0:06:16]} a5 {[%emt 0:01:38]} 14. a3 {[%emt 0:03:18]} Na6 {[%emt 0:00:05]} 15. e3 {[%emt 0:01:50]} Nb4 {[%emt 0:00:08]} 16. Rc1 {[%emt 0:00:41]} Nd5 {[%emt 0:16:47]} 17. Bg3 {[%emt 0:07:58]} Be4 {[%emt 0:05:35]} 18. Bd3 {[%emt 0:05:42]} Bxf3 {[%emt 0:01:11]} 19. gxf3 {[%emt 0:00:54]} Rd8 {[%emt 0:00:38]} 20. Qc2 {[%emt 0:02:46]} h5 {[%emt 0:00:16]} 21. Bf5 {[%emt 0:03:03]} Rd7 {[%emt 0:00:54]} 22. e4 {[%emt 0:03:32]} Bg5 {[%emt 0:01:09]} 23. Bxd7 {[%emt 0:04:08]} Qxd7 {[%emt 0:00:32]} 24. exd5 {[%emt 0:00:21]} Re8+ {[%emt 0:00:16]} 25. Kf1 {[%emt 0:00:28]} Bxc1 {[%emt 0:00:10]} 26. Qxc1 {[%emt 0:00:13]} Qxd5 {[%emt 0:00:52]} 27. Qc3 {[%emt 0:01:02]} g5 {[%emt 0:00:59]} 28. Be5 {[%emt 0:02:25]} Re6 {[%emt 0:01:23]} 29. Qe3 {[%emt 0:11:09]} f6 {[%emt 0:00:27]} 30. Rg1 {[%emt 0:00:04]} Kf7 {[%emt 0:02:20]} 31. f4 {[%emt 0:00:39]} Qb5+ {[%emt 0:03:54]} 32. Kg2 {[%emt 0:02:04]} fxe5 {[%emt 0:02:57]} 33. fxe5 {[%emt 0:01:43]} Qxb2 {[%emt 0:00:15]} 34. Kh2 {[%emt 0:00:36]} Rg6 {[%emt 0:00:07]} 35. Rxg5 {[%emt 0:02:47]} Rxg5 {[%emt 0:00:15]} 36. Qxg5 {[%emt 0:00:02]} Qxf2+ {[%emt 0:00:08]} 37. Qg2 {[%emt 0:00:30]} Qf4+ {[%emt 0:01:01]} 38. Qg3 {[%emt 0:00:46]} Qd2+ {[%emt 0:01:10]} 39. Qg2 {[%emt 0:00:19]} Qf4+ {[%emt 0:00:22]} 1/2-1/2

[Event "GER-ch Youth-U14 2022"]
[Site "Willingen"]
[Date "2022.06.08"]
[Round "6.21"]
[White "Miller, Elias"]
[Black "Eichhorn, Valentin"]
[Result "0-1"]
[ECO "E09"]
[WhiteElo "1548"]
[BlackElo "1565"]
[Annotator "NA RC COMBH"]
[PlyCount "88"]
[EventDate "2022.06.05"]
[EventType "swiss"]
[EventRounds "9"]
[EventCountry "GER"]
[SourceTitle "playchess.com"]
[Source "ChessBase"]
[SourceQuality "1"]
[TimeControl "40/4500+30:900+30"]

1. d4 {[%emt 0:00:00]} Nf6 {[%emt 0:00:00]} 2. c4 {[%emt 0:00:00]} e6 {[%emt 0:00:00]} 3. Nf3 {[%emt 0:00:00]} d5 {[%emt 0:00:00]} 4. g3 {[%emt 0:00:00]} Be7 {[%emt 0:00:00]} 5. Bg2 {[%emt 0:00:00]} O-O {[%emt 0:00:00]} 6. O-O {[%emt 0:00:00]} Nbd7 {[%emt 0:00:00]} 7. Nbd2 {[%emt 0:00:00]} c6 {[%emt 0:00:00]} 8. Qc2 {[%emt 0:00:00]} Re8 {[%emt 0:00:00]} 9. e4 {[%emt 0:00:00]} dxe4 {[%emt 0:10:07]} 10. Nxe4 {[%emt 0:00:00]} Nxe4 {[%emt 0:00:28]} 11. Qxe4 {[%emt 0:00:00]} Nf6 {[%emt 0:00:59]} 12. Qc2 {[%emt 0:00:00]} Bd7 {[%emt 0:05:08]} 13. b3 {[%emt 0:00:00]} Rc8 {[%emt 0:08:19]} 14. Bb2 {[%emt 0:05:52]} c5 {[%emt 0:03:03]} 15. dxc5 {[%emt 0:06:29]} Bxc5 {[%emt 0:02:24]} 16. Rad1 {[%emt 0:01:57]} Be7 {[%emt 0:02:27]} 17. Qd3 {[%emt 0:02:54]} Bc6 {[%emt 0:03:29]} 18. Qb1 {[%emt 0:00:22]} Qa5 {[%emt 0:01:31]} 19. Nh4 {[%emt 0:13:16]} Bxg2 {[%emt 0:01:45]} 20. Nxg2 {[%emt 0:00:10]} Red8 {[%emt 0:01:57]} 21. Qc2 {[%emt 0:08:15]} b5 {[%emt 0:09:50]} 22. Bc3 {[%emt 0:02:16]} Qc7 {[%emt 0:00:51]} 23. Rxd8+ {[%emt 0:06:38]} Bxd8 {[%emt 0:02:20]} 24. Ne3 {[%emt 0:00:55]} Be7 {[%emt 0:02:36]} 25. Rc1 {[%emt 0:04:38]} bxc4 {[%emt 0:03:33]} 26. Nxc4 {[%emt 0:00:27]} Qc6 {[%emt 0:06:41]} 27. Bd4 {[%emt 0:07:14]} a6 {[%emt 0:04:33]} 28. Qe2 {[%emt 0:08:39]} h6 {[%emt 0:08:40]} 29. Rc3 {[%emt 0:01:15]} Qe4 {[%emt 0:03:57]} 30. Qe3 {[%emt 0:14:35]} Rd8 {[%emt 0:03:10]} 31. Qxe4 {[%emt 0:02:43]} Nxe4 {[%emt 0:00:15]} 32. Rd3 {[%emt 0:01:02]} Bc5 {[%emt 0:00:50]} 33. Bxc5 {[%emt 0:00:10]} Rxd3 {[%emt 0:00:19]} 34. Be3 {[%emt 0:00:37]} Nc3 {[%emt 0:01:14]} 35. a3 {[%emt 0:00:52]} Nd5 {[%emt 0:00:30]} 36. b4 {[%emt 0:01:09]} Nxe3 {[%emt 0:00:14]} 37. fxe3 {[%emt 0:00:06]} Rc3 {[%emt 0:00:07]} 38. Na5 {[%emt 0:01:17]} Rxa3 {[%emt 0:00:37]} 39. Kf2 {[%emt 0:00:08]} Kf8 {[%emt 0:00:43]} 40. Kf3 {[%emt 0:00:17]} Ke8 {[%emt 0:01:23]} 41. h4 {[%emt 0:15:13]} Kd7 {[%emt 0:16:02]} 42. Ke4 {[%emt 0:00:54]} Ra4 {[%emt 0:00:45]} 43. Kd3 {[%emt 0:00:00]} Rxb4 {[%emt 0:00:00]} 44. Nc4 {[%emt 0:00:00]} Rxc4 {[%emt 0:00:00]} 0-1

[Event "GER-ch Youth-U14 2022"]
[Site "Willingen"]
[Date "2022.06.08"]
[Round "6.22"]
[White "Grundmann, Max"]
[Black "Detjen, Mattes"]
[Result "0-1"]
[ECO "D31"]
[WhiteElo "1358"]
[BlackElo "1098"]
[Annotator "NA RC COMBH"]
[PlyCount "97"]
[EventDate "2022.06.05"]
[EventType "swiss"]
[EventRounds "9"]
[EventCountry "GER"]
[SourceTitle "playchess.com"]
[Source "ChessBase"]
[SourceQuality "1"]
[TimeControl "40/4500+30:900+30"]

1. d4 {[%emt 0:00:00]} d5 {[%emt 0:00:00]} 2. c4 {[%emt 0:00:00]} e6 {[%emt 0:00:00]} 3. Nc3 {[%emt 0:00:00]} c6 {[%emt 0:00:00]} 4. cxd5 {[%emt 0:00:00]} exd5 {[%emt 0:00:00]} 5. Nf3 {[%emt 0:00:00]} Nf6 {[%emt 0:00:00]} 6. Bg5 {[%emt 0:00:00]} Be7 {[%emt 0:00:00]} 7. e3 {[%emt 0:00:00]} Bf5 {[%emt 0:00:00]} 8. Bd3 {[%emt 0:00:00]} Bxd3 {[%emt 0:00:00]} 9. Qxd3 {[%emt 0:00:00]} Nbd7 {[%emt 0:00:00]} 10. O-O {[%emt 0:00:00]} O-O {[%emt 0:00:00]} 11. Nh4 {[%emt 0:00:00]} h6 {[%emt 0:01:26]} 12. Bxf6 {[%emt 0:00:00]} Nxf6 {[%emt 0:00:19]} 13. Nf5 {[%emt 0:00:00]} Nh7 {[%emt 0:06:14]} 14. Rfe1 {[%emt 0:00:00]} Bf6 {[%emt 0:02:31]} 15. Rad1 {[%emt 0:00:00]} Re8 {[%emt 0:05:48]} 16. f3 {[%emt 0:00:30]} Qd7 {[%emt 0:06:38]} 17. e4 {[%emt 0:02:10]} dxe4 {[%emt 0:01:55]} 18. fxe4 {[%emt 0:00:43]} Rad8 {[%emt 0:02:31]} 19. e5 {[%emt 0:02:16]} Bxe5 {[%emt 0:06:02]} 20. Qh3 {[%emt 0:04:31]} Bf6 {[%emt 0:10:06]} 21. Rxe8+ {[%emt 0:00:22]} Qxe8 {[%emt 0:01:45]} 22. Kf1 {[%emt 0:02:57]} Ng5 {[%emt 0:02:56]} 23. Qg4 {[%emt 0:04:50]} Qd7 {[%emt 0:04:45]} 24. Qf4 {[%emt 0:05:39]} Ne6 {[%emt 0:01:55]} 25. Qg3 {[%emt 0:07:25]} Kf8 {[%emt 0:05:40]} 26. Ne2 {[%emt 0:06:11]} Qc7 {[%emt 0:02:17]} 27. Qa3+ {[%emt 0:04:52]} Kg8 {[%emt 0:04:24]} 28. g3 {[%emt 0:01:17]} a6 {[%emt 0:00:41]} 29. Qb3 {[%emt 0:02:19]} h5 {[%emt 0:03:39]} 30. Qa4 {[%emt 0:03:34]} g6 {[%emt 0:01:29]} 31. Ne3 {[%emt 0:00:54]} Qb6 {[%emt 0:01:30]} 32. Nc4 {[%emt 0:02:38]} Qb5 {[%emt 0:00:48]} 33. Qxb5 {[%emt 0:07:30]} axb5 {[%emt 0:00:29]} 34. Ne3 {[%emt 0:01:21]} Nxd4 {[%emt 0:00:24]} 35. Nxd4 {[%emt 0:00:59]} Rxd4 {[%emt 0:00:18]} 36. b3 {[%emt 0:00:36]} Rxd1+ {[%emt 0:00:08]} 37. Nxd1 {[%emt 0:00:09]} Kf8 {[%emt 0:00:04]} 38. Ke2 {[%emt 0:00:16]} Ke7 {[%emt 0:00:07]} 39. Ke3 {[%emt 0:00:39]} c5 {[%emt 0:00:21]} 40. Ke4 {[%emt 0:00:37]} Bd4 {[%emt 0:00:15]} 41. Kd5 {[%emt 0:16:10]} Kd7 {[%emt 0:15:35]} 42. b4 {[%emt 0:00:14]} b6 {[%emt 0:06:07]} 43. h3 {[%emt 0:00:44]} g5 {[%emt 0:00:37]} 44. g4 {[%emt 0:00:29]} h4 {[%emt 0:00:19]} 45. Ke4 {[%emt 0:01:50]} Ke6 {[%emt 0:00:14]} 46. Ne3 {[%emt 0:00:35]} Bxe3 {[%emt 0:00:33]} 47. Kxe3 {[%emt 0:00:08]} f5 {[%emt 0:01:23]} 48. Kf3 {[%emt 0:02:10]} c4 {[%emt 0:00:31]} 49. gxf5+ {[%emt 0:01:15]} 0-1

[Event "GER-ch Youth-U14 2022"]
[Site "Willingen"]
[Date "2022.06.09"]
[Round "7.1"]
[White "Deuer, Marius"]
[Black "Ermitsch, Magnus"]
[Result "1-0"]
[ECO "D41"]
[WhiteElo "2359"]
[BlackElo "2222"]
[Annotator "TA"]
[PlyCount "57"]
[EventDate "2022.06.05"]
[EventType "swiss"]
[EventRounds "9"]
[EventCountry "GER"]
[SourceTitle "playchess.com"]
[Source "ChessBase"]
[SourceQuality "1"]
[TimeControl "40/4500+30:900+30"]

{[%evp 20,57,33,6,28,19,20,12,35,38,50,54,82,79,78,77,73,74,74,68,193,193,193,157,163,149,231,213,720,693,607,600,1487,1462,1355,1364,1189,1107,1252,1067]} 1. d4 {[%emt 0:00:00]} Nf6 {[%emt 0:00:00]} 2. c4 {[%emt 0:00:00]} e6 {[%emt 0:00:00]} 3. Nf3 {[%emt 0:00:00]} d5 {[%emt 0:00:00]} 4. Nc3 {[%emt 0:00:00]} c5 {[%emt 0:00:00]} 5. cxd5 {[%emt 0:00:00]} Nxd5 {[%emt 0:00:00]} 6. e4 {[%emt 0:00:00]} Nxc3 {[%emt 0:00:00]} 7. bxc3 {[%emt 0:00:00]} cxd4 {[%emt 0:00:00]} 8. cxd4 {[%emt 0:00:00]} Bb4+ {[%emt 0:00:00]} 9. Bd2 {[%emt 0:00:00]} Bxd2+ {[%emt 0:00:00]} 10. Qxd2 {[%emt 0:00:00]} O-O {[%emt 0:00:00]} 11. Rc1 {[%emt 0:00:00]} b6 {[%emt 0:00:00] D41: Queen's Gambit Declined: Semi-Tarrasch with 5 cxd5.} 12. Bd3 {[%emt 0:00:00]} Bb7 {[%emt 0:00:00]} 13. O-O {[%emt 0:00:00]} Nc6 {[%emt 0:00:00] The position is equal.} 14. d5 {[%emt 0:00:00]} exd5 {[%emt 0:00:00]} 15. exd5 {[%emt 0:00:00]} Ne7 {[%emt 0:00:00]} 16. d6 {[%emt 0:00:00]} Nd5 {[%emt 0:00:00]} 17. Ng5 $1 $36 {[%emt 0:00:00][%mdl 2048] White is really pushing.} h6 {[%emt 0:32:09]} 18. Ne4 {[%emt 0:00:00] White is much more active. The black rooks are badly placed.} Qh4 {[%emt 0:02:48] [#]} 19. Rc4 $146 {[%emt 0:00:00][%cal Oe4c5,Bc1c4,Bc4d4,Bd4d5][%mdl 32]} ({Predecessor:} 19. g3 Qh5 20. Bc4 Rad8 21. Rfd1 Nb4 22. Qxb4 Bxe4 23. Rd4 Ba8 24. Rcd1 Bf3 25. Re1 {½-½ (46) Ruck,R (2530)-Janzelj,T (2438) Slovenia 2019}) 19... b5 {[%emt 0:05:24] [#]} (19... Qf4 $1 $14) 20. Rd4 $1 $18 {[%emt 0:22:00] Strongly threatening Bc2.} f5 {[%emt 0:20:02] aiming for ...Nb6.} 21. Bxb5 {[%emt 0:10:22]} fxe4 {[%emt 0:05:36] [#]} 22. Bc4 $1 {[%emt 0:01:08]} ({But not} 22. Rxd5 $6 Bxd5 23. Qxd5+ Kh8 $14) 22... Rae8 {[%emt 0:00:50]} (22... e3 $2 23. Qxe3 Qh5 24. Qb3 $18) (22... Rad8 $16 {might work better.}) 23. d7 {[%emt 0:06:28]} ({Less strong is} 23. Rxd5 Bxd5 24. Bxd5+ (24. Qxd5+ Kh8 $14) 24... Kh8 $11) 23... Re5 {[%emt 0:01:46]} (23... Rd8) 24. Bxd5+ {[%emt 0:01:18] White is clearly winning.} Bxd5 {[%emt 0:00:27]} 25. Rxd5 {[%emt 0:01:05]} e3 {[%emt 0:00:57]} 26. fxe3 {[%emt 0:13:03]} Rxf1+ {[%emt 0:00:54]} 27. Kxf1 {[%emt 0:00:01]} Qc4+ {[%emt 0:00:36]} 28. Qd3 {[%emt 0:00:06]} Rf5+ {[%emt 0:01:08]} 29. Kg1 {[%emt 0:00:43] Black did not feel at home in the position after the opening.  Weighted Error Value: White=0.06 (flawless) /Black=0.31} 1-0